bitfinex/quotes_SOLUSD_20220216
["timestamp","ask_amount","ask_price","bid_price","bid_amount"]
[1645001127137,13.84,103.86,103.81,1.9623746]
[1645001127337,14.4464,103.87,103.81,1.9623746]
[1645001128941,14.4464,103.87,103.81,16.4080746]
[1645001130853,40.1961954,103.88,103.81,16.4080746]
[1645001131049,38.8501,103.88,103.81,39.6288746]
[1645001132451,38.8501,103.88,103.81,25.1831746]
[1645001132651,40.1961954,103.88,103.81,25.1831746]
[1645001133177,54.0361954,103.88,103.81,25.1831746]
[1645001134476,1.3460954,103.87,103.81,25.1831746]
[1645001134676,15.7932954,103.87,103.81,25.1831746]
[1645001135678,1.3460954,103.86,103.81,25.1831746]
[1645001138181,1.3460954,103.86,103.81,39.6290746]
[1645001138384,1.3460954,103.87,103.81,39.6290746]
[1645001140082,15.7921954,103.87,103.81,39.6290746]
[1645001142984,15.7921954,103.87,103.81,1.9623746]
[1645001143188,1.3460954,103.85,103.81,1.9623746]
[1645001143386,14.4524,103.84,103.81,1.9623746]
[1645001143587,2.62351345,103.83,103.81,1.9623746]
[1645001144389,14.4526,103.82,103.81,1.9623746]
[1645001144989,1.96,103.81,103.74,1.33780324]
[1645001145190,1.96,103.81,103.73,0.33675376]
[1645001145689,14.458,103.79,103.73,0.33675376]
[1645001146791,14.458,103.79,103.73,14.79375376]
[1645001147991,111.4724954,103.83,103.73,14.79375376]
[1645001148191,110.1264,103.83,103.73,14.79375376]
[1645001149793,14.4546,103.81,103.73,14.79375376]
[1645001153298,14.4546,103.81,103.74,14.4546]
[1645001155004,14.4546,103.81,103.74,110.5046]
[1645001155201,14.4532,103.82,103.74,110.5046]
[1645001155806,14.4532,103.82,103.74,133.7285]
[1645001156403,14.4532,103.82,103.74,37.6785]
[1645001161729,14.4532,103.82,103.74,133.7285]
[1645001162129,14.4532,103.82,103.74,37.6785]
[1645001162334,14.4532,103.82,103.74,133.7285]
[1645001163330,1.3460954,103.85,103.74,135.8227038]
[1645001163534,1.3460954,103.86,103.8,96.05]
[1645001163732,48.1678,103.87,103.8,96.05]
[1645001163733,1.3460954,103.87,103.8,7.906]
[1645001163932,1.3460954,103.88,103.81,2.0942038]
[1645001164332,1.3460954,103.88,103.81,10.3082038]
[1645001164534,1.3460954,103.89,103.81,10.5582038]
[1645001164735,1.3460954,103.89,103.84,14.4404]
[1645001165134,1.3460954,103.89,103.84,112.5846038]
[1645001165337,1.3460954,103.89,103.84,119.6546038]
[1645001165734,1.3460954,103.91,103.84,23.6046038]
[1645001165934,1.3460954,103.91,103.84,21.5104]
[1645001166434,7.25668156,103.92,103.84,21.5104]
[1645001166643,7.25668156,103.92,103.84,14.4404]
[1645001166835,21.69638156,103.92,103.84,14.4404]
[1645001167037,24.11691411,103.92,103.82,16.5376038]
[1645001167236,13.84,103.91,103.82,14.4434]
[1645001167437,15.1860954,103.91,103.82,14.4434]
[1645001167638,1.3460954,103.9,103.82,14.4434]
[1645001168338,15.1860954,103.91,103.82,14.4434]
[1645001168539,15.1860954,103.91,103.82,110.4934]
[1645001168737,15.1860954,103.91,103.82,16.5376038]
[1645001169139,13.84,103.91,103.82,16.5376038]
[1645001169538,7.25668156,103.92,103.82,16.5376038]
[1645001169938,15.7870954,103.91,103.82,16.5376038]
[1645001170343,14.441,103.91,103.82,16.5376038]
[1645001171343,14.441,103.91,103.82,14.4434]
[1645001172441,15.7870954,103.91,103.82,14.4434]
[1645001172643,1.3460954,103.9,103.82,14.4434]
[1645001172843,1.3460954,103.9,103.8,50.7406038]
[1645001172844,15.1860954,103.9,103.81,14.4458]
[1645001173041,14.447,103.88,103.8,48.6464]
[1645001173641,15.7930954,103.88,103.8,48.6464]
[1645001173842,14.447,103.88,103.8,48.6464]
[1645001175845,14.447,103.88,103.8,63.0933]
[1645001178347,14.4437,103.89,103.82,14.4442]
[1645001179241,14.4437,103.89,103.82,16.5384038]
[1645001179841,14.4437,103.89,103.82,14.4442]
[1645001180145,14.4437,103.89,103.81,14.4457]
[1645001184450,14.4437,103.89,103.82,96.05]
[1645001184650,14.4437,103.89,103.83,14.4428]
[1645001186854,14.4422,103.9,103.83,16.5370038]
[1645001187150,25.3858954,103.91,103.83,16.5370038]
[1645001187353,1.3460954,103.91,103.83,16.5370038]
[1645001187552,15.1860954,103.93,103.83,16.7870038]
[1645001187753,1.3460954,103.93,103.86,14.4354]
[1645001187952,1.3460954,103.94,103.87,96.05]
[1645001188156,1.3460954,103.94,103.87,122.7881038]
[1645001188554,1.3460954,103.95,103.88,2.0942038]
[1645001188855,1.3460954,103.96,103.89,96.05]
[1645001189254,1.3460954,103.96,103.89,98.1442038]
[1645001189856,1.3460954,103.96,103.9,110.4813]
[1645001190759,1.3460954,103.96,103.9,14.4313]
[1645001194261,15.7797954,103.96,103.9,14.4313]
[1645001196362,14.4337,103.96,103.9,14.4313]
[1645001196865,14.4337,103.96,103.89,14.4346]
[1645001197667,14.4337,103.96,103.87,24.6439]
[1645001197867,1.3460954,103.95,103.87,24.6439]
[1645001198064,14.4367,103.94,103.88,14.4361]
[1645001198470,14.4367,103.94,103.87,24.6439]
[1645001198969,14.4367,103.94,103.85,23.1012]
[1645001199170,15.7827954,103.94,103.85,37.5417]
[1645001199971,1.3460954,103.93,103.84,24.3489]
[1645001200394,14.4427,103.91,103.84,38.7907]
[1645001203874,14.4427,103.91,103.84,24.3489]
[1645001204080,14.4396,103.92,103.84,24.3489]
[1645001204280,14.4396,103.92,103.84,26.4431038]
[1645001205882,14.4396,103.92,103.84,40.8848038]
[1645001207183,14.4396,103.92,103.84,38.7906]
[1645001207383,15.7856954,103.92,103.84,38.7906]
[1645001207898,14.4431,103.9,103.84,24.3489]
[1645001208602,14.4431,103.9,103.82,26.2032038]
[1645001208799,15.7891954,103.9,103.8,24.5391]
[1645001209002,1.3460954,103.89,103.8,24.5391]
[1645001209700,14.4471,103.87,103.8,38.9868]
[1645001210703,21.9371,103.87,103.78,45.9585]
[1645001211301,35.7771,103.87,103.78,45.9585]
[1645001211803,35.7771,103.87,103.78,60.4087]
[1645001213605,28.2871,103.87,103.78,60.4087]
[1645001214407,28.2871,103.87,103.78,23.4241]
[1645001214609,28.2871,103.87,103.74,50.2657038]
[1645001214905,1.3460954,103.86,103.75,46.0175]
[1645001215106,13.84,103.85,103.75,46.0175]
[1645001215312,14.4535,103.83,103.75,46.0175]
[1645001215510,14.4535,103.83,103.75,60.4715]
[1645001218312,14.4535,103.83,103.75,62.5657038]
[1645001220617,14.4535,103.83,103.76,96.05]
[1645001220817,14.451,103.84,103.76,110.5018]
[1645001221016,14.451,103.84,103.76,112.5960038]
[1645001221215,14.451,103.84,103.76,16.5460038]
[1645001223017,14.451,103.84,103.76,112.5960038]
[1645001223220,14.451,103.84,103.76,16.5460038]
[1645001226924,14.4493,103.85,103.77,96.05]
[1645001227130,14.4493,103.85,103.78,14.4493]
[1645001228228,14.4478,103.86,103.78,14.4493]
[1645001230440,14.4478,103.86,103.78,110.4993]
[1645001231037,24.4088,103.87,103.78,110.4993]
[1645001231242,1.3460954,103.88,103.81,14.444]
[1645001231440,1.3460954,103.89,103.81,117.736]
[1645001231638,1.3460954,103.9,103.81,119.8302038]
[1645001231836,24.5597954,103.91,103.81,119.8302038]
[1645001232037,1.3460954,103.9,103.81,119.8302038]
[1645001232442,24.5597954,103.91,103.81,119.8302038]
[1645001232938,14.4423,103.9,103.81,143.7574038]
[1645001233140,15.7883954,103.9,103.81,143.7574038]
[1645001234660,14.4423,103.9,103.81,143.7574038]
[1645001236262,15.7883954,103.9,103.81,143.7574038]
[1645001236863,14.4423,103.9,103.81,143.7574038]
[1645001238966,1.3460954,103.91,103.81,157.5974038]
[1645001239167,1.3460954,103.91,103.85,110.4879]
[1645001239367,1.3460954,103.92,103.85,110.4879]
[1645001239570,1.3460954,103.94,103.86,2.0942038]
[1645001240271,1.3460954,103.94,103.88,14.434]
[1645001240467,1.3460954,103.95,103.88,14.434]
[1645001241768,15.7814954,103.95,103.88,14.434]
[1645001247173,15.7814954,103.95,103.85,47.5643]
[1645001247373,1.3460954,103.94,103.85,47.5643]
[1645001247575,14.4408,103.92,103.85,47.5643]
[1645001248974,14.4408,103.92,103.85,62.0047]
[1645001252578,15.1860954,103.94,103.85,158.0547]
[1645001252778,14.4379,103.93,103.85,160.1489038]
[1645001255182,1.3460954,103.94,103.85,160.1489038]
[1645001255183,15.7826954,103.94,103.85,160.1489038]
[1645001255382,1.3460954,103.94,103.85,173.9889038]
[1645001255586,1.3460954,103.95,103.85,173.9889038]
[1645001256985,1.3460954,103.94,103.85,173.9889038]
[1645001257184,15.7812954,103.95,103.85,173.9889038]
[1645001257386,1.3460954,103.94,103.85,173.9889038]
[1645001257585,15.7812954,103.95,103.85,173.9889038]
[1645001258485,1.3460954,103.94,103.85,173.9889038]
[1645001260288,15.7812954,103.95,103.85,173.9889038]
[1645001260486,1.3460954,103.94,103.85,173.9889038]
[1645001260697,1.3460954,103.94,103.85,174.2389038]
[1645001261088,1.3460954,103.94,103.85,173.9889038]
[1645001261290,1.3460954,103.94,103.85,174.2389038]
[1645001262590,1.3460954,103.94,103.85,173.9889038]
[1645001262992,1.3460954,103.94,103.85,174.2389038]
[1645001266492,1.3460954,103.93,103.85,174.2389038]
[1645001266892,1.3460954,103.94,103.85,174.2389038]
[1645001267292,1.3460954,103.93,103.85,174.2389038]
[1645001268210,1.3460954,103.94,103.85,174.2389038]
[1645001268413,1.3460954,103.93,103.85,174.2389038]
[1645001270915,1.3460954,103.93,103.85,173.9889038]
[1645001271116,1.3460954,103.92,103.85,64.0989038]
[1645001271514,1.3460954,103.92,103.85,160.1489038]
[1645001271713,1.3460954,103.92,103.85,64.0989038]
[1645001272913,15.7847954,103.92,103.85,64.0989038]
[1645001277819,15.7847954,103.92,103.85,160.1489038]
[1645001278523,15.7847954,103.92,103.85,64.0989038]
[1645001279523,15.7847954,103.92,103.85,62.0047]
[1645001279725,1.3460954,103.91,103.85,62.0047]
[1645001281825,1.3460954,103.91,103.85,158.0547]
[1645001282026,1.3460954,103.91,103.85,62.0047]
[1645001282229,1.3460954,103.91,103.85,158.0547]
[1645001284930,1.3460954,103.91,103.85,62.0047]
[1645001287732,1.3460954,103.92,103.85,64.0989038]
[1645001288133,1.3460954,103.92,103.85,160.1489038]
[1645001290139,1.3460954,103.92,103.85,160.3989038]
[1645001290540,1.3460954,103.93,103.85,160.3989038]
[1645001291138,1.3460954,103.93,103.85,160.1489038]
[1645001291343,1.3460954,103.93,103.85,160.3989038]
[1645001291741,15.7828954,103.93,103.85,64.0989038]
[1645001291941,15.7828954,103.93,103.85,62.0047]
[1645001291942,1.3460954,103.92,103.85,62.0047]
[1645001292944,15.7851954,103.92,103.85,62.0047]
[1645001293142,15.7851954,103.92,103.85,14.4404]
[1645001293343,1.3460954,103.91,103.85,14.4404]
[1645001293542,1.3460954,103.9,103.85,14.4404]
[1645001294947,15.7878954,103.9,103.85,14.4404]
[1645001297150,15.7878954,103.9,103.84,14.4418]
[1645001299762,1.3460954,103.89,103.81,2.0942038]
[1645001299954,15.7913954,103.88,103.78,52.08020324]
[1645001300150,15.7913954,103.88,103.79,2.0942038]
[1645001300551,15.7913954,103.88,103.79,98.1442038]
[1645001300754,15.7913954,103.88,103.8,14.4466]
[1645001300951,1.3460954,103.88,103.8,14.4466]
[1645001301151,1.3460954,103.89,103.81,20.48612022]
[1645001301353,49.2047954,103.91,103.81,21.82392346]
[1645001301553,49.2047954,103.91,103.82,116.53612022]
[1645001301773,49.2047954,103.91,103.82,20.48612022]
[1645001301973,49.2047954,103.91,103.82,2.0942038]
[1645001302376,49.2047954,103.91,103.82,26.5448038]
[1645001302674,63.6459954,103.91,103.83,14.4429]
[1645001303474,1.3460954,103.9,103.83,14.4429]
[1645001303674,49.2047954,103.91,103.83,14.4429]
[1645001304881,14.4439,103.89,103.83,14.4429]
[1645001306579,14.4439,103.89,103.82,38.8954]
[1645001306780,14.4439,103.89,103.8,1.33780324]
[1645001306981,39.7645954,103.89,103.79,1.33780324]
[1645001307181,14.4491,103.86,103.78,1.33780324]
[1645001307782,14.4491,103.86,103.79,19.87274097]
[1645001308984,14.4491,103.86,103.79,34.32144097]
[1645001309382,14.4491,103.86,103.79,14.4487]
[1645001311386,37.4652,103.87,103.81,14.4459]
[1645001311587,23.019,103.87,103.81,14.4459]
[1645001312188,1.3460954,103.9,103.82,2.0942038]
[1645001312390,14.4436,103.89,103.82,2.0942038]
[1645001312587,14.4436,103.89,103.82,16.5379038]
[1645001313389,14.4436,103.89,103.82,14.4437]
[1645001318795,14.4436,103.89,103.83,96.05]
[1645001318995,38.7682,103.9,103.82,110.4937]
[1645001319496,24.326,103.9,103.82,126.4279038]
[1645001320096,24.326,103.9,103.82,154.46661906]
[1645001320295,1.3460954,103.92,103.82,154.46661906]
[1645001320503,1.3460954,103.92,103.83,22.987]
[1645001320695,1.3460954,103.93,103.86,14.4364]
[1645001321598,1.3460954,103.93,103.86,39.0911]
[1645001321797,15.7837954,103.93,103.86,39.0911]
[1645001322495,15.7837954,103.93,103.85,14.4405]
[1645001322894,15.7837954,103.93,103.85,38.0443]
[1645001326501,1.3460954,103.93,103.85,136.1885038]
[1645001326702,1.3460954,103.93,103.85,150.0285038]
[1645001326900,23.5486,103.94,103.85,150.0285038]
[1645001328707,23.5486,103.94,103.85,53.9785038]
[1645001328907,23.5486,103.94,103.85,51.8843]
[1645001329107,23.5486,103.94,103.85,38.0443]
[1645001329606,24.8946954,103.94,103.85,38.0443]
[1645001329807,37.9851,103.94,103.85,136.1885038]
[1645001330910,23.5486,103.94,103.85,136.1885038]
[1645001331108,23.5486,103.94,103.86,109.89]
[1645001331309,23.5486,103.94,103.88,14.4349]
[1645001333111,37.9849,103.94,103.88,14.4349]
[1645001338530,37.9849,103.94,103.87,22.8476]
[1645001338736,39.3309954,103.94,103.87,22.8476]
[1645001339031,39.3309954,103.94,103.84,73.0072]
[1645001339233,14.4395,103.92,103.85,24.925]
[1645001340434,14.4395,103.92,103.85,39.3649]
[1645001345755,14.4395,103.92,103.85,135.4149]
[1645001345954,14.4395,103.92,103.85,39.3649]
[1645001347353,14.4395,103.92,103.85,135.4149]
[1645001347554,14.4395,103.92,103.85,39.3649]
[1645001348055,14.4395,103.92,103.85,135.4149]
[1645001348258,15.7837954,103.93,103.85,135.4149]
[1645001348455,1.3460954,103.93,103.85,137.5091038]
[1645001349355,24.8946954,103.94,103.85,151.3491038]
[1645001349556,24.8946954,103.94,103.85,168.89325127]
[1645001351059,1.3460954,103.94,103.85,168.89325127]
[1645001351461,1.3460954,103.94,103.85,179.63781906]
[1645001351664,1.3460954,103.95,103.85,201.96336407]
[1645001351859,1.31588129,103.96,103.87,96.05]
[1645001352059,74.54807912,104.0,103.89,110.4803]
[1645001352259,74.54807912,104.0,103.89,124.3203]
[1645001352461,74.54807912,104.0,103.9,2.08994126]
[1645001352662,14.4304,103.98,103.9,2.08994126]
[1645001352858,14.4304,103.98,103.89,13.84]
[1645001353861,14.4304,103.98,103.91,14.4314]
[1645001354980,49.32927912,104.0,103.91,110.4814]
[1645001355182,14.4292,103.99,103.91,110.4814]
[1645001357985,14.4292,103.99,103.91,14.4314]
[1645001360588,61.0359,104.0,103.91,14.4314]
[1645001361689,61.0359,104.0,103.92,96.05]
[1645001361889,61.0359,104.0,103.94,14.4274]
[1645001362789,46.6079,104.0,103.94,14.4274]
[1645001365696,61.0356,104.0,103.94,14.4274]
[1645001371902,61.0356,104.0,103.94,14.40172566]
[1645001376911,46.6079,104.0,103.94,14.40172566]
[1645001377709,46.6079,104.0,103.94,110.45172566]
[1645001378111,46.6079,104.0,103.94,14.40172566]
[1645001382915,46.6079,104.0,103.94,110.45172566]
[1645001383118,46.6079,104.0,103.94,14.40172566]
[1645001384015,14.425,104.02,103.94,14.40172566]
[1645001384215,38.5296,104.02,103.94,134.57102566]
[1645001384417,38.5296,104.02,103.94,38.52102566]
[1645001386623,38.5296,104.02,103.94,134.57102566]
[1645001390546,22.69656692,104.03,103.94,136.65187733]
[1645001390747,5.5516878,104.03,103.94,150.49187733]
[1645001391347,5.5516878,104.03,103.94,150.74187733]
[1645001391546,24.8036,104.05,103.94,150.74187733]
[1645001392546,39.2243,104.05,103.94,150.74187733]
[1645001392947,39.2243,104.05,103.94,165.26507733]
[1645001393947,24.8036,104.05,103.94,182.8092248]
[1645001394147,24.8036,104.05,103.96,96.05]
[1645001394348,24.8036,104.05,103.98,110.4692]
[1645001395149,24.8036,104.05,103.98,14.4192]
[1645001395447,39.2239,104.05,103.98,14.4192]
[1645001400357,39.2239,104.05,103.98,110.4692]
[1645001400558,39.2239,104.05,103.98,14.4192]
[1645001401460,39.2239,104.05,103.98,110.4692]
[1645001401762,39.2239,104.05,103.98,14.4192]
[1645001406170,39.2239,104.05,103.98,110.4692]
[1645001406970,39.2239,104.05,103.98,14.4192]
[1645001416874,39.2239,104.05,103.97,39.107]
[1645001416875,41.94527912,104.05,103.97,39.107]
[1645001417075,39.2239,104.05,103.97,39.107]
[1645001418877,41.94527912,104.05,103.97,39.107]
[1645001419280,41.94527912,104.05,103.97,135.157]
[1645001419681,41.94527912,104.05,103.97,137.23649313]
[1645001419882,39.2239,104.05,103.97,137.23649313]
[1645001420884,39.2239,104.05,103.97,151.07649313]
[1645001421286,24.8036,104.05,103.97,151.07649313]
[1645001429918,39.2237,104.05,103.97,151.07649313]
[1645001434019,39.2237,104.05,103.97,55.02649313]
[1645001435319,39.2237,104.05,103.97,151.07649313]
[1645001436119,39.2237,104.05,103.97,150.57649313]
[1645001437322,39.2237,104.05,103.97,54.52649313]
[1645001439124,39.2237,104.05,103.97,52.447]
[1645001439924,39.2237,104.05,103.97,148.497]
[1645001440324,39.2237,104.05,103.97,158.30749313]
[1645001440527,14.419,104.06,103.97,158.55749313]
[1645001440728,2.72137912,104.08,103.99,96.05]
[1645001440927,5.4550913,104.09,104.01,14.4161]
[1645001441125,5.4550913,104.09,104.01,20.4591]
[1645001442129,5.4550913,104.09,104.01,116.5091]
[1645001442828,14.4164,104.08,104.01,116.5091]
[1645001443827,14.4164,104.08,104.03,0.57097068]
[1645001444028,14.4164,104.08,104.03,14.98757068]
[1645001463376,14.4164,104.08,104.03,0.57097068]
[1645001463777,14.422,104.06,104.03,0.57097068]
[1645001464179,2.62351345,104.05,104.03,0.57097068]
[1645001465882,17.04411345,104.05,104.04,0.40868652]
[1645001466481,17.04411345,104.05,104.03,0.57097068]
[1645001467983,17.04411345,104.05,104.04,0.40868652]
[1645001468686,17.04411345,104.05,104.03,0.57097068]
[1645001471789,18.41090727,104.05,104.03,0.57097068]
[1645001479695,20.83143982,104.05,103.96,1.36755388]
[1645001479894,14.4264,104.02,103.95,1.36755388]
[1645001480094,23.1087,104.01,103.93,1.36755388]
[1645001480295,23.1087,104.01,103.92,49.33885388]
[1645001480897,23.1087,104.01,103.93,19.54709251]
[1645001481094,23.1087,104.01,103.93,20.91464639]
[1645001481718,14.4287,104.0,103.92,63.76865388]
[1645001482518,14.4287,104.0,103.92,47.9713]
[1645001484421,14.4287,104.0,103.9,1.36755388]
[1645001484622,23.2762,103.99,103.89,25.46145388]
[1645001484820,14.4341,103.96,103.89,38.528]
[1645001491926,14.4341,103.96,103.89,134.578]
[1645001492127,38.4044,103.97,103.89,38.528]
[1645001495533,38.4044,103.97,103.89,24.0939]
[1645001498138,38.4044,103.97,103.89,38.5276]
[1645001499038,38.4044,103.97,103.89,134.5776]
[1645001499236,38.4044,103.97,103.89,38.5276]
[1645001507546,38.4044,103.97,103.88,28.8794]
[1645001507746,38.4044,103.97,103.88,14.4352]
[1645001508548,38.4044,103.97,103.88,38.3882]
[1645001510051,38.4044,103.97,103.88,39.75575388]
[1645001511148,42.19172637,103.97,103.88,23.953]
[1645001511554,1.36679382,103.96,103.88,23.953]
[1645001511751,14.4402,103.94,103.86,1.36755388]
[1645001511954,22.9334,103.93,103.84,1.36755388]
[1645001512251,22.9334,103.93,103.83,24.63075388]
[1645001512451,22.9334,103.93,103.84,1.36755388]
[1645001512852,14.4423,103.91,103.84,1.36755388]
[1645001513054,38.9547,103.91,103.84,1.36755388]
[1645001513258,38.9547,103.91,103.83,39.07335388]
[1645001515158,38.9547,103.91,103.83,37.7058]
[1645001515988,43.62206794,103.91,103.83,37.7058]
[1645001526601,43.62206794,103.91,103.83,23.2632]
[1645001528702,43.62206794,103.91,103.83,37.7064]
[1645001537113,0.05609008,103.9,103.83,37.7064]
[1645001537413,14.4431,103.89,103.83,37.7064]
[1645001537612,0.05609008,103.9,103.83,135.8306518]
[1645001537813,0.05609008,103.9,103.83,142.7476518]
[1645001538016,0.05609008,103.9,103.83,144.11520568]
[1645001538213,0.05609008,103.9,103.83,173.6973919]
[1645001538815,0.05609008,103.9,103.84,1.36755388]
[1645001539016,0.05609008,103.9,103.85,14.4372]
[1645001539417,0.05609008,103.9,103.86,22.7046]
[1645001539615,0.05609008,103.9,103.86,28.2536]
[1645001540017,0.05609008,103.9,103.86,29.62115388]
[1645001540217,0.05609008,103.9,103.86,29.87115388]
[1645001540517,0.05609008,103.9,103.86,29.62115388]
[1645001540723,0.05609008,103.9,103.86,28.2536]
[1645001540918,0.05609008,103.9,103.87,14.4375]
[1645001541120,0.05609008,103.9,103.88,0.40868652]
[1645001541319,0.05609008,103.9,103.88,24.86488652]
[1645001542323,14.49266889,103.94,103.88,24.86488652]
[1645001542923,14.49266889,103.94,103.89,14.4355]
[1645001547125,14.4358,103.94,103.89,14.4355]
[1645001549745,22.7753,103.96,103.89,116.3745]
[1645001549946,1.36679382,103.98,103.91,14.432]
[1645001550146,7.7747276,103.99,103.92,24.0465]
[1645001550447,30.7732276,103.99,103.92,24.0465]
[1645001550644,29.40643378,103.99,103.92,24.0465]
[1645001551346,43.83573378,103.99,103.92,38.4765]
[1645001553150,43.83573378,103.99,103.92,24.0465]
[1645001553349,46.25626633,103.99,103.92,24.0465]
[1645001553754,47.62306015,103.99,103.92,24.0465]
[1645001554955,47.62306015,103.99,103.9,23.85]
[1645001555351,62.06526015,103.99,103.9,23.85]
[1645001555554,47.62306015,103.99,103.9,23.85]
[1645001555754,47.62306015,103.99,103.91,22.6753]
[1645001556258,45.2025276,103.99,103.91,22.6753]
[1645001557856,58.24403378,103.99,103.91,22.6753]
[1645001559859,58.24403378,103.99,103.91,37.1076]
[1645001560963,43.83573378,103.99,103.91,133.1576]
[1645001561163,43.83573378,103.99,103.91,39.1818518]
[1645001564667,43.83573378,103.99,103.91,37.1076]
[1645001569079,43.83573378,103.99,103.91,135.2318518]
[1645001570676,29.40643378,103.99,103.91,135.2318518]
[1645001573374,29.40643378,103.99,103.91,39.1818518]
[1645001573875,29.40643378,103.99,103.92,96.05]
[1645001574075,29.40643378,103.99,103.94,14.4282]
[1645001577885,14.4278,104.0,103.94,20.1592]
[1645001578085,38.14,104.01,103.94,20.1592]
[1645001578284,61.0606,104.01,103.95,23.189]
[1645001578487,61.0606,104.01,103.96,14.4254]
[1645001585815,62.42739382,104.01,103.95,37.6162]
[1645001586012,62.42739382,104.01,103.95,23.189]
[1645001587413,64.84792637,104.01,103.9,73.31735388]
[1645001587615,1.36679382,104.0,103.91,22.643]
[1645001587813,14.4321,103.98,103.9,23.85]
[1645001588013,15.79889382,103.98,103.9,23.85]
[1645001588213,15.79889382,103.98,103.89,22.7174]
[1645001588515,18.21942637,103.98,103.89,22.7174]
[1645001589715,15.79889382,103.98,103.89,22.7174]
[1645001589916,15.79889382,103.98,103.89,37.1523]
[1645001593920,24.0942,103.97,103.89,37.1523]
[1645001594119,14.4338,103.96,103.89,37.1523]
[1645001594320,14.4338,103.96,103.89,133.2023]
[1645001594521,1.36679382,103.99,103.89,133.2023]
[1645001594720,26.14989382,104.0,103.89,170.4022]
[1645001594920,26.14989382,104.0,103.89,171.76975388]
[1645001595818,14.4306,103.98,103.89,171.76975388]
[1645001596020,14.4306,103.98,103.89,172.01975388]
[1645001596721,14.4306,103.98,103.89,187.76916232]
[1645001597522,14.4306,103.98,103.9,115.71963364]
[1645001597722,14.4306,103.98,103.92,14.4298]
[1645001600531,14.4285,103.99,103.93,96.05]
[1645001600733,24.7831,104.0,103.94,14.4278]
[1645001600933,24.7831,104.0,103.94,38.1361]
[1645001601753,39.2109,104.0,103.94,23.7083]
[1645001605939,39.2109,104.0,103.94,38.1374]
[1645001610368,39.2109,104.0,103.94,23.7083]
[1645001613278,39.2109,104.0,103.93,14.4301]
[1645001613473,39.2109,104.0,103.89,72.83305388]
[1645001613675,42.99822637,104.0,103.9,23.5901]
[1645001613875,42.99822637,104.0,103.9,43.86932814]
[1645001614174,1.36679382,103.99,103.9,43.86932814]
[1645001614376,1.36679382,103.99,103.9,23.5901]
[1645001614575,14.4328,103.97,103.91,14.4329]
[1645001619384,14.4302,103.98,103.91,110.4829]
[1645001619583,14.4302,103.98,103.93,14.4295]
[1645001620184,26.14989382,104.0,103.93,14.4295]
[1645001620596,40.57749382,104.0,103.93,14.4295]
[1645001620784,39.2107,104.0,103.93,110.4795]
[1645001620985,25.08039382,104.01,103.93,110.7295]
[1645001621184,23.7136,104.01,103.93,110.7295]
[1645001621987,38.1397,104.01,103.93,110.7295]
[1645001623086,38.1397,104.01,103.93,110.4795]
[1645001623386,38.1397,104.01,103.93,28.2695]
[1645001623686,39.50649382,104.01,103.93,28.2695]
[1645001624087,38.1397,104.01,103.93,36.1005]
[1645001624292,38.1397,104.01,103.94,96.05]
[1645001624491,38.1397,104.01,103.96,14.4252]
[1645001624687,14.4261,104.01,103.96,14.4252]
[1645001627189,14.4261,104.01,103.95,14.4275]
[1645001633494,14.4261,104.01,103.94,14.4288]
[1645001633794,18.21342637,104.01,103.93,23.849]
[1645001634195,1.36679382,104.0,103.93,23.849]
[1645001634394,14.4322,103.98,103.93,23.849]
[1645001634597,14.4322,103.98,103.91,14.4322]
[1645001634998,14.4322,103.98,103.89,23.1603]
[1645001636608,14.4322,103.98,103.9,14.434]
[1645001637209,29.0512,103.98,103.9,14.434]
[1645001640911,14.4322,103.98,103.9,14.434]
[1645001642214,14.4322,103.98,103.91,23.5011]
[1645001642413,14.4322,103.98,103.91,37.9339]
[1645001646537,0.02534153,103.91,103.86,24.22575388]
[1645001646736,0.02534153,103.91,103.86,46.3751]
[1645001647540,14.46604153,103.91,103.86,46.3751]
[1645001647737,14.46604153,103.91,103.83,6.38988828]
[1645001647939,14.46604153,103.91,103.83,5.0223344]
[1645001648137,14.46604153,103.91,103.84,20.40788657]
[1645001648536,14.46604153,103.91,103.83,5.0223344]
[1645001649138,14.46604153,103.91,103.82,63.4205]
[1645001649340,21.06762458,103.91,103.82,63.4205]